bitfinex/quotes_SOLUSD_20241202
["timestamp","ask_amount","ask_price","bid_price","bid_amount"]
[1733171692496,20.0,224.97,224.92,4.448]
[1733171692697,15.7216,225.01,224.94,4.448]
[1733171693505,15.7216,225.01,224.94,12.80115563]
[1733171694423,11.1095,225.04,224.96,4.448]
[1733171694626,11.1095,225.04,224.96,12.80115563]
[1733171695133,11.1095,225.04,224.93,74.448]
[1733171695619,11.1095,225.04,224.93,4.448]
[1733171695805,20.0,225.01,224.93,4.448]
[1733171696643,11.1111,225.0,224.94,4.448]
[1733171698029,11.1111,225.0,224.91,4.448]
[1733171701303,16.193,224.99,224.91,4.448]
[1733171703203,17.7468,225.0,224.91,4.448]
[1733171703204,20.0,225.0,224.93,82.80115563]
[1733171703527,20.0,225.01,224.94,8.35315563]
[1733171703915,20.0,225.01,224.95,4.448]
[1733171705112,15.3237,225.04,224.97,8.35315563]
[1733171705311,15.3237,225.04,224.96,78.35315563]
[1733171706041,6.275,225.06,224.98,4.448]
[1733171709943,6.275,225.06,224.96,78.35315563]
[1733171710108,6.275,225.06,224.97,4.448]
[1733171710520,6.275,225.06,224.97,12.80115563]
[1733171710922,11.108,225.07,224.97,12.80115563]
[1733171713228,11.108,225.07,225.0,4.448]
[1733171713941,16.2523,225.1,225.0,8.35315563]
[1733171714237,11.1066,225.09,225.0,4.448]
[1733171714740,11.1066,225.09,225.0,12.80115563]
[1733171715247,11.1066,225.09,225.03,4.448]
[1733171716922,11.1066,225.09,225.02,70.0]
[1733171718149,11.1066,225.09,225.03,4.448]
[1733171719820,3.36068222,225.14,225.03,4.448]
[1733171720113,20.0,225.1,225.03,4.448]
[1733171723377,31.106,225.11,225.03,4.448]
[1733171724830,31.106,225.11,225.02,70.0]
[1733171725033,31.106,225.11,225.03,4.448]
[1733171726931,31.106,225.11,225.02,70.0]
[1733171728329,53.3173,225.11,224.99,70.0]
[1733171728641,53.3173,225.11,224.99,78.35315563]
[1733171729053,53.3173,225.11,225.0,4.448]
[1733171729355,53.3173,225.11,225.0,12.80115563]
[1733171731150,53.3173,225.11,225.0,4.448]
[1733171733350,53.3173,225.11,224.96,4.448]
[1733171733557,53.3173,225.11,224.98,4.448]
[1733171734434,20.0,225.08,224.98,4.448]
[1733171734649,20.0,225.04,224.98,4.448]
[1733171737148,20.0,225.04,224.99,4.448]
[1733171739268,20.0,225.04,224.98,4.448]
[1733171742245,20.0,225.04,224.99,4.448]
[1733171742451,20.0,225.04,224.95,70.0]
[1733171742757,20.0,225.04,224.99,4.448]
[1733171744380,20.0,225.04,224.97,8.35315563]
[1733171744569,20.0,225.04,224.98,4.448]
[1733171744777,11.109,225.05,224.98,4.448]
[1733171746067,11.109,225.05,224.99,4.448]
[1733171747567,11.109,225.05,224.98,4.448]
[1733171748369,20.0,225.02,224.98,4.448]
[1733171748684,20.0,225.02,224.95,4.448]
[1733171749776,20.0,225.03,224.95,4.448]
[1733171750083,20.0,225.02,224.95,4.448]
[1733171750464,20.0,225.02,224.96,4.448]
[1733171752385,20.0,225.02,224.97,12.80115563]
[1733171752687,11.1086,225.05,224.99,12.80115563]
[1733171754295,11.1086,225.05,225.01,4.448]
[1733171755482,11.1086,225.05,225.0,4.448]
[1733171755689,11.1086,225.05,225.0,12.80115563]
[1733171756262,31.1072,225.08,225.02,4.448]
[1733171756684,31.1072,225.08,225.02,12.80115563]
[1733171757189,11.1072,225.08,225.02,12.80115563]
[1733171757676,13.11381562,225.12,225.02,12.80115563]
[1733171757874,11.1056,225.11,225.02,12.80115563]
[1733171758077,11.1056,225.11,224.99,4.448]
[1733171758290,20.0,225.08,225.02,4.448]
[1733171758792,20.0,225.08,225.02,12.80115563]
[1733171758970,20.0,225.08,224.98,70.88644362]
[1733171759171,20.0,225.08,225.03,4.448]
[1733171760088,20.0,225.08,225.02,4.448]
[1733171760280,31.107,225.09,224.98,70.0]
[1733171760596,20.0,225.08,224.98,70.0]
[1733171760785,20.0,225.06,224.96,23.60545563]
[1733171760977,20.0,225.06,224.96,15.2523]
[1733171761185,20.0,225.06,224.92,70.0]
[1733171761479,20.0,225.02,224.94,8.35315563]
[1733171761670,20.0,225.02,224.95,4.448]
[1733171762071,20.0,225.02,224.92,70.0]
[1733171762292,11.1106,225.01,224.94,4.448]
[1733171762886,11.1106,225.01,224.95,4.448]
[1733171763989,11.1106,225.01,224.94,4.448]
[1733171764389,11.1106,225.01,224.94,12.80115563]
[1733171765990,11.1106,225.01,224.91,4.448]
[1733171766900,11.1106,225.01,224.91,12.80115563]
[1733171767278,20.0,224.98,224.91,12.80115563]
[1733171767684,20.0,224.98,224.9,12.80115563]
[1733171767889,20.0,225.02,224.9,4.448]
[1733171768082,53.3303,225.02,224.9,4.448]
[1733171768903,53.3303,225.02,224.89,4.448]
[1733171769694,53.3303,225.02,224.87,8.35315563]
[1733171770202,53.3303,225.02,224.86,70.0]
[1733171770402,53.3303,225.02,224.86,78.35315563]
[1733171770798,53.3303,225.02,224.87,4.448]
[1733171771280,20.0,224.98,224.86,4.448]
[1733171773105,20.0,224.94,224.84,12.80115563]
[1733171773778,20.0,224.94,224.8,16.45721132]
[1733171773779,20.0,224.9,224.8,79.24516695]
[1733171774706,20.0,224.9,224.81,4.448]
[1733171775291,20.0,224.88,224.8,0.89201132]
[1733171775602,20.0,224.86,224.8,0.89201132]
[1733171775809,20.0,224.86,224.81,4.448]
[1733171776305,11.1165,224.89,224.8,0.89201132]
[1733171776488,20.0,224.86,224.8,9.24516695]
[1733171776690,20.0,224.86,224.81,4.448]
[1733171777906,20.0,224.86,224.8,9.24516695]
[1733171778079,20.0,224.86,224.81,4.448]
[1733171778995,20.0,224.86,224.8,0.89201132]
[1733171779202,20.0,224.86,224.81,4.448]
[1733171779505,20.0,224.86,224.82,4.448]
[1733171780407,20.0,224.86,224.79,4.448]
[1733171781103,20.0,224.86,224.79,12.80115563]
[1733171781503,20.0,224.86,224.77,70.0]
[1733171781709,20.0,224.88,224.77,70.0]
[1733171781890,20.0,224.87,224.76,8.35315563]
[1733171782210,20.0,224.87,224.78,8.35315563]
[1733171782395,20.0,224.87,224.79,8.35315563]
[1733171782712,20.0,224.87,224.8,4.448]
[1733171782908,20.0,224.87,224.8,8.35315563]
[1733171783213,20.0,224.87,224.77,70.0]
[1733171783214,20.0,224.87,224.79,8.35315563]
[1733171783389,20.0,224.87,224.8,8.35315563]
[1733171783585,21.5102,224.93,224.84,8.35315563]
[1733171783792,21.5102,224.93,224.85,8.35315563]
[1733171784609,15.2593,224.93,224.87,8.35315563]
[1733171784925,11.1124,224.98,224.87,8.35315563]
[1733171785390,11.1124,224.98,224.86,8.35315563]
[1733171785587,13.85438252,224.98,224.87,78.35315563]
[1733171786595,13.85438252,224.98,224.88,4.448]
[1733171787020,20.0,224.95,224.88,4.448]
[1733171787997,20.0,224.95,224.89,8.35315563]
[1733171788200,22.4779,224.99,224.91,8.35315563]
[1733171788884,22.4779,224.99,224.9,78.35315563]
[1733171789090,22.4779,224.99,224.91,12.80115563]
[1733171790005,22.4779,224.99,224.91,4.448]
[1733171791200,33.5895,224.99,224.87,70.0]
[1733171791515,33.5895,224.99,224.87,78.35315563]
[1733171791925,33.5895,224.99,224.88,4.448]
[1733171792291,20.0,224.96,224.87,70.0]
[1733171793122,20.0,224.96,224.88,4.448]
[1733171793818,31.1131,224.96,224.87,70.0]
[1733171794117,31.1131,224.96,224.88,4.448]
[1733171794711,31.1131,224.96,224.86,4.448]
[1733171796113,31.1131,224.96,224.85,4.448]
[1733171798097,33.97210676,224.96,224.85,8.35315563]
[1733171798330,31.1131,224.96,224.87,4.448]
[1733171798527,22.4779,224.99,224.9,78.35315563]
[1733171798837,14.34261185,225.02,224.93,78.35315563]
[1733171799303,14.34261185,225.02,224.94,4.448]
[1733171801726,14.34261185,225.02,224.93,70.0]
[1733171801928,14.34261185,225.02,224.91,4.448]
[1733171804233,14.34261185,225.02,224.95,4.448]
[1733171804532,14.34261185,225.02,224.94,8.35315563]
[1733171804829,14.34261185,225.02,224.93,78.35315563]
[1733171805122,14.34261185,225.02,224.94,4.448]
[1733171805305,11.1106,225.01,224.93,70.0]
[1733171805623,11.1106,225.01,224.9,78.35315563]
[1733171806207,11.1106,225.01,224.91,4.448]
[1733171808933,11.1106,225.01,224.9,70.0]
[1733171809230,20.0,224.98,224.91,4.448]
[1733171810115,16.3536,224.96,224.84,4.448]
[1733171811335,11.1135,224.95,224.83,70.0]
[1733171811513,20.0,224.92,224.84,4.448]
[1733171814515,20.0,224.92,224.84,4.448]
[1733171814833,20.0,224.92,224.83,70.0]
[1733171814834,20.0,224.92,224.85,4.448]
[1733171815128,11.1155,224.91,224.85,4.448]
[1733171816040,11.1155,224.91,224.81,4.448]
[1733171816939,11.1155,224.91,224.84,8.35315563]
[1733171817438,11.1155,224.91,224.83,8.35315563]
[1733171817935,11.1155,224.91,224.84,4.448]
[1733171818625,11.1139,224.95,224.85,12.80115563]
[1733171819228,11.1139,224.95,224.86,8.35315563]
[1733171819922,11.1139,224.95,224.85,8.35315563]
[1733171820850,11.1139,224.95,224.86,4.448]
[1733171822333,11.1139,224.95,224.85,4.448]
[1733171824707,16.3536,224.96,224.85,4.448]
[1733171824917,16.3536,224.96,224.89,8.35315563]
[1733171825135,16.3536,224.96,224.88,70.0]
[1733171825723,16.3536,224.96,224.86,8.35315563]
[1733171826021,14.34261185,225.02,224.87,4.448]
[1733171826234,20.0,224.98,224.85,78.35315563]
[1733171827028,20.0,224.98,224.86,4.448]
[1733171827818,20.0,224.98,224.86,12.80115563]
[1733171828019,20.0,224.98,224.88,8.35315563]
[1733171828215,31.1125,224.98,224.87,4.448]
[1733171828942,16.2503,224.97,224.87,4.448]
[1733171829242,20.0,224.94,224.83,4.448]
[1733171830345,11.1145,224.93,224.83,4.448]
[1733171831322,20.0,224.9,224.82,4.448]
[1733171832334,20.0,224.9,224.8,4.448]
[1733171832528,11.1165,224.89,224.8,4.448]
[1733171832739,11.1165,224.89,224.8,12.80115563]
[1733171832930,11.1165,224.89,224.82,74.448]
[1733171833137,11.1165,224.89,224.84,4.448]
[1733171833138,20.0,224.89,224.84,4.448]
[1733171833531,20.0,224.9,224.84,4.448]
[1733171833940,11.1151,224.92,224.84,4.448]
[1733171835133,11.1151,224.92,224.83,12.80115563]
[1733171835640,11.1151,224.92,224.85,4.448]
[1733171835845,22.74387231,224.94,224.85,74.448]
[1733171836028,20.0,224.92,224.85,74.448]
[1733171837447,11.1136,224.95,224.88,70.0]
[1733171837648,11.1136,224.95,224.85,70.0]
[1733171837926,11.1136,224.95,224.82,78.35315563]
[1733171838153,11.1136,224.95,224.82,70.0]
[1733171838446,11.1136,224.95,224.83,4.448]
[1733171838632,11.1136,224.95,224.8,4.448]
[1733171838833,0.06710141,224.89,224.8,4.448]
[1733171839030,0.06710141,224.89,224.83,4.448]
[1733171840664,0.06710141,224.89,224.84,4.448]
[1733171840965,15.85770141,224.89,224.84,4.448]
[1733171841259,11.117,224.88,224.79,4.448]
[1733171841754,20.0,224.85,224.79,4.448]
[1733171842841,11.119,224.84,224.79,4.448]
[1733171843365,20.0,224.81,224.79,4.448]
[1733171843529,15.7906,224.8,224.7,4.448]
[1733171844050,20.0,224.81,224.74,12.80115563]
[1733171844251,20.0,224.81,224.76,4.448]
[1733171844437,15.7906,224.86,224.78,4.448]
[1733171844643,20.0,224.83,224.8,4.448]
[1733171845459,15.7906,224.86,224.8,4.448]
[1733171846433,17.7551,224.88,224.81,4.448]
[1733171847052,0.06710141,224.89,224.82,4.448]
[1733171847440,0.06710141,224.89,224.83,4.448]
[1733171847648,0.06710141,224.89,224.83,13.06003479]
[1733171847837,0.06710141,224.89,224.86,13.06003479]
[1733171848037,0.06710141,224.89,224.87,4.448]
[1733171848469,0.06710141,224.89,224.85,4.448]
[1733171848670,0.06710141,224.89,224.85,17.50803479]
[1733171849273,0.06710141,224.89,224.85,4.448]
[1733171850075,0.06710141,224.89,224.86,17.50803479]
[1733171850255,0.06710141,224.89,224.86,4.448]
[1733171851274,0.06710141,224.89,224.85,4.448]
[1733171852475,0.06710141,224.89,224.86,4.448]
[1733171854070,0.06710141,224.89,224.84,5.3350859]
[1733171854273,0.06710141,224.89,224.84,4.448]
[1733171855260,0.06710141,224.89,224.81,4.448]
[1733171857561,0.06710141,224.89,224.82,4.448]
[1733171857562,11.117,224.88,224.82,4.448]
[1733171857764,11.117,224.88,224.78,4.448]
[1733171858079,20.0,224.85,224.78,4.448]
[1733171858446,20.0,224.85,224.79,4.448]
[1733171859859,20.0,224.85,224.77,4.448]
[1733171861769,20.0,224.85,224.76,4.448]
[1733171861971,31.1187,224.85,224.76,4.448]
[1733171864266,31.1187,224.85,224.78,4.448]
[1733171864449,20.0,224.85,224.78,17.50803479]
[1733171864652,20.0,224.85,224.8,4.448]
[1733171865867,20.0,224.85,224.79,4.448]
[1733171867584,20.0,224.85,224.8,4.448]
[1733171868559,20.0,224.85,224.79,4.448]
[1733171870982,20.0,224.85,224.8,4.448]
[1733171872087,20.0,224.85,224.77,4.448]
[1733171876663,31.1186,224.85,224.76,4.448]
[1733171877787,31.1186,224.85,224.73,4.448]
[1733171878501,31.1186,224.85,224.73,12.80978085]
[1733171879593,31.1186,224.85,224.75,4.448]
[1733171881264,21.7218,224.84,224.73,4.448]
[1733171882790,21.7218,224.84,224.73,12.80978085]
[1733171883798,21.7218,224.84,224.75,82.80778085]
[1733171883997,21.7218,224.84,224.77,8.36178085]
[1733171884292,21.7218,224.84,224.75,78.36178085]
[1733171884883,21.7218,224.84,224.76,4.446]
[1733171885086,0.06710141,224.78,224.76,4.446]
[1733171885503,0.06710141,224.78,224.72,70.0]
[1733171885899,0.06710141,224.78,224.69,70.0]
[1733171886110,0.06710141,224.78,224.69,78.36178085]
[1733171886681,0.06710141,224.78,224.7,8.36178085]
[1733171886902,0.06710141,224.78,224.71,4.446]
[1733171887579,0.06710141,224.78,224.72,4.446]
[1733171888385,0.06710141,224.78,224.72,12.80778085]
[1733171888781,0.06710141,224.78,224.7,4.446]
[1733171888977,0.06710141,224.78,224.7,8.36178085]
[1733171889307,0.06710141,224.78,224.71,8.36178085]
[1733171889809,0.06710141,224.78,224.73,4.446]
[1733171891211,0.06710141,224.78,224.72,4.446]
[1733171891791,0.06710141,224.78,224.72,82.80778085]
[1733171892108,0.06710141,224.78,224.75,12.80778085]
[1733171892319,0.06710141,224.78,224.77,4.446]
[1733171892885,0.06710141,224.78,224.77,12.80778085]
[1733171893193,0.00606511,224.78,224.75,70.0]
[1733171893403,0.00606511,224.78,224.72,8.36178085]
[1733171893912,0.00606511,224.78,224.74,4.446]
[1733171894090,0.00606511,224.78,224.71,12.80778085]
[1733171894291,0.00606511,224.78,224.71,4.446]
[1733171895395,0.00606511,224.78,224.72,4.446]
[1733171896216,20.0,224.77,224.72,4.446]
[1733171896506,20.0,224.77,224.71,4.446]
[1733171897713,20.0,224.77,224.7,4.446]
[1733171898724,20.0,224.77,224.69,4.446]
[1733171898893,31.1226,224.77,224.69,4.446]
[1733171900690,31.1226,224.77,224.7,4.446]
[1733171902704,31.1226,224.77,224.69,4.446]
[1733171902912,15.3292,224.76,224.69,4.446]
[1733171903112,21.9677,224.76,224.69,4.446]
[1733171903728,20.0,224.73,224.6,70.0]
[1733171904025,20.0,224.73,224.61,12.80778085]
[1733171904228,20.0,224.73,224.56,15.9828]
[1733171904229,20.0,224.73,224.57,70.0]
[1733171904403,20.0,224.73,224.61,8.36178085]
[1733171904729,11.1249,224.72,224.62,4.446]
[1733171905114,11.1249,224.72,224.63,4.446]
[1733171905809,20.0,224.69,224.58,0.88804149]
[1733171906015,20.0,224.69,224.57,82.80778085]
[1733171906525,20.0,224.65,224.56,8.36178085]
[1733171907044,20.0,224.65,224.57,4.446]
[1733171907326,31.1285,224.65,224.58,4.446]
[1733171907831,31.1285,224.65,224.58,12.80778085]
[1733171908211,20.0,224.65,224.62,4.446]
[1733171908427,20.0,224.65,224.58,8.36178085]
[1733171908603,20.0,224.65,224.57,8.36178085]
[1733171909304,20.0,224.65,224.58,4.446]
[1733171909503,11.1289,224.64,224.57,4.446]
[1733171910601,11.1289,224.64,224.58,4.446]
[1733171911222,11.1289,224.64,224.52,4.446]
[1733171911630,11.1289,224.64,224.54,4.446]
[1733171912905,11.1289,224.64,224.55,4.446]
[1733171913306,33.3867,224.64,224.55,4.446]
[1733171913935,33.3867,224.64,224.52,4.446]
[1733171914336,33.3867,224.64,224.52,12.80778085]
[1733171916223,20.0,224.59,224.49,4.446]
[1733171916426,20.0,224.59,224.47,12.80778085]
[1733171916935,20.0,224.59,224.47,4.446]
[1733171917131,20.0,224.55,224.45,70.0]
[1733171917440,6.0688,224.54,224.42,4.446]
[1733171917641,6.0688,224.54,224.41,78.36178085]
[1733171917945,6.0688,224.54,224.42,8.36178085]
[1733171918244,20.0,224.51,224.38,0.5377697]
[1733171918436,33.403,224.53,224.4,12.80778085]
[1733171918437,35.9055,224.5,224.4,12.80778085]
[1733171919227,11.1363,224.49,224.4,4.446]
[1733171919533,11.1363,224.49,224.38,0.5377697]
[1733171919735,11.1363,224.49,224.38,4.9837697]
[1733171920114,11.1363,224.49,224.38,0.5377697]
[1733171920339,33.409,224.49,224.38,0.5377697]
[1733171920640,6.3734,224.48,224.38,0.5377697]
[1733171921844,11.1373,224.47,224.38,0.5377697]
[1733171922944,20.0,224.44,224.38,0.5377697]
[1733171924129,11.1393,224.43,224.38,0.5377697]
[1733171924548,20.0,224.4,224.38,0.5377697]
[1733171925450,20.0,224.44,224.38,0.5377697]
[1733171927429,11.1377,224.47,224.38,0.5377697]
[1733171928572,16.5857,224.43,224.38,0.5377697]
[1733171929454,20.0,224.4,224.38,0.5377697]
[1733171929846,26.1694,224.4,224.38,6.97e-05]
[1733171930225,17.837222,224.39,224.38,6.97e-05]
[1733171930640,28.978522,224.39,224.38,6.97e-05]
[1733171933758,27.7254,224.43,224.38,6.97e-05]
[1733171934144,45.559036,224.43,224.38,6.97e-05]
[1733171934942,20.0,224.4,224.38,6.97e-05]
[1733171935853,31.1408,224.4,224.38,6.97e-05]
[1733171943965,31.1408,224.4,224.26,90.2316]
[1733171944152,20.0,224.38,224.26,90.2316]
[1733171944468,20.0,224.38,224.26,20.2316]
[1733171944763,20.0,224.36,224.26,20.2316]
[1733171944972,20.0,224.36,224.23,70.0]
[1733171945169,6.3256,224.39,224.14,5.0]
[1733171945170,20.0,224.32,224.17,70.0]
[1733171945375,4.84350789,224.31,224.15,29.22628936]
[1733171945574,20.0,224.28,224.17,13.11941966]
[1733171945752,20.0,224.28,224.15,16.1068697]
[1733171945753,20.0,224.28,224.15,29.22628936]
[1733171945951,20.0,224.28,224.15,20.5528697]
[1733171946150,20.0,224.24,224.15,20.5528697]
[1733171946760,35.0972,224.24,224.15,0.5377697]
[1733171946955,20.0,224.22,224.15,0.5377697]
[1733171949077,11.1488,224.24,224.16,13.11941966]
[1733171949377,11.1488,224.24,224.16,17.56541966]
[1733171949575,11.1488,224.24,224.16,4.446]
[1733171949882,20.0,224.25,224.16,4.446]
[1733171950245,20.0,224.25,224.15,4.9837697]
[1733171951049,20.0,224.26,224.15,4.9837697]
[1733171951353,11.1484,224.25,224.15,4.9837697]
[1733171953779,11.1484,224.25,224.17,4.446]
[1733171955067,11.1484,224.25,224.15,13.65718936]
[1733171955068,11.1484,224.25,224.16,4.446]
[1733171956191,11.1484,224.25,224.15,4.9837697]
[1733171958184,11.1484,224.25,224.16,4.446]
[1733171958963,4.33712667,224.32,224.2,4.446]
[1733171959186,15.4058,224.34,224.23,4.446]
[1733171959390,18.25993419,224.34,224.23,4.446]
[1733171959969,11.1447,224.33,224.23,4.446]
[1733171960596,20.0,224.3,224.23,4.446]
[1733171960896,11.1447,224.33,224.23,17.56541966]
[1733171961963,11.1447,224.33,224.23,4.446]
[1733171962165,11.1447,224.33,224.24,4.446]
[1733171963170,11.1447,224.33,224.2,4.446]
[1733171963370,20.0,224.3,224.2,4.446]
[1733171963861,20.0,224.3,224.2,18.45498354]
[1733171964476,20.0,224.3,224.22,4.446]
[1733171964690,20.0,224.3,224.22,17.56541966]
[1733171964997,20.0,224.3,224.22,87.56541966]
[1733171965670,13.9005753,224.37,224.27,17.56541966]
[1733171965890,11.1426,224.37,224.29,4.446]
[1733171966669,2.79394491,224.41,224.29,4.446]
[1733171966869,13.93454491,224.41,224.29,4.446]
[1733171967067,11.1406,224.41,224.29,4.446]
[1733171970985,11.1406,224.41,224.29,17.56541966]
[1733171975297,11.1406,224.41,224.28,85.1651]
[1733171975495,11.1406,224.41,224.29,4.446]
[1733171975880,11.1406,224.41,224.32,4.446]
[1733171976288,20.0,224.34,224.17,70.0]
[1733171976487,20.0,224.3,224.14,70.0]
[1733171976876,20.0,224.3,224.11,89.39351966]
[1733171977103,24.90569402,224.3,224.11,89.39351966]
[1733171977281,20.0,224.28,224.12,4.446]
[1733171977685,11.1472,224.27,224.12,4.446]
[1733171977886,11.1472,224.27,224.14,70.0]
[1733171986403,11.1472,224.27,224.15,4.9837697]
[1733171994314,11.1472,224.27,224.17,4.446]
[1733171994893,20.0,224.28,224.17,87.56541966]
[1733171995091,20.0,224.28,224.19,17.56541966]
[1733171995396,11.1457,224.31,224.19,17.56541966]
[1733171995700,20.0,224.28,224.19,4.446]
[1733171996707,20.0,224.28,224.18,4.446]
[1733172000133,20.0,224.28,224.21,4.446]
[1733172001107,13.92918069,224.31,224.21,4.446]
[1733172001516,20.0,224.28,224.21,4.446]
[1733172002423,11.1469,224.28,224.21,4.446]
[1733172004512,11.1469,224.28,224.18,4.446]
[1733172012021,11.1469,224.28,224.22,4.446]
[1733172012022,20.0,224.28,224.22,4.446]
[1733172012820,2.80375093,224.3,224.22,4.446]
[1733172013027,11.1453,224.31,224.24,70.0]
[1733172013936,4.90569402,224.33,224.24,70.0]
[1733172014114,11.3922,224.38,224.27,70.0]
[1733172014637,11.1428,224.36,224.27,70.0]
[1733172014807,11.1428,224.36,224.24,70.0]
[1733172015127,1.64805699,224.35,224.22,4.446]
[1733172015318,20.0,224.33,224.22,4.446]
[1733172015711,20.0,224.33,224.19,16.1679]
[1733172016034,20.0,224.28,224.2,4.446]
[1733172016237,15.4102,224.29,224.15,7.1706697]
[1733172016530,15.4102,224.29,224.15,0.5377697]
[1733172016927,20.0,224.26,224.15,0.5377697]
[1733172017137,20.0,224.26,224.15,4.9837697]
[1733172018330,11.1482,224.25,224.15,4.9837697]
[1733172021625,11.1482,224.25,224.17,74.446]
[1733172021823,20.0,224.26,224.17,74.446]
[1733172024540,11.1482,224.25,224.15,4.9837697]
[1733172026826,20.0,224.26,224.17,74.446]
[1733172027027,20.0,224.25,224.17,82.85329878]
[1733172027228,20.0,224.25,224.17,74.446]
[1733172029714,20.0,224.25,224.17,82.85329878]
[1733172029926,20.0,224.25,224.17,74.446]
[1733172030808,31.1482,224.26,224.15,13.39106848]
[1733172031537,31.1482,224.26,224.18,4.446]
[1733172034929,30.66327375,224.26,224.18,4.446]
[1733172035842,30.66327375,224.26,224.17,70.0]
[1733172036945,30.66327375,224.26,224.18,4.446]
[1733172040249,30.66327375,224.26,224.13,16.5106]
[1733172040451,0.89568682,224.25,224.13,16.5106]
[1733172040749,0.89568682,224.25,224.14,4.446]
[1733172041255,11.1487,224.24,224.14,74.446]
[1733172041461,12.04438682,224.24,224.14,74.446]
[1733172042457,11.1487,224.24,224.14,74.446]
[1733172042696,0.64568682,224.23,224.14,74.446]
[1733172043033,11.79438682,224.24,224.14,74.446]
[1733172044150,11.1487,224.24,224.14,74.446]
[1733172050639,11.1487,224.24,224.15,4.446]
[1733172050839,20.0,224.25,224.18,4.446]
[1733172054064,20.0,224.25,224.17,70.0]
[1733172056374,20.0,224.25,224.17,70.0]
[1733172061467,20.0,224.25,224.18,4.446]
[1733172066266,11.79438682,224.24,224.15,4.446]
[1733172066469,42.2224,224.21,224.15,4.446]
[1733172066685,0.64568682,224.2,224.15,4.446]
[1733172067277,0.64568682,224.2,224.1,4.446]
[1733172067787,11.79678682,224.2,224.1,4.446]
[1733172068076,11.1511,224.2,224.13,4.446]
[1733172068461,42.2224,224.21,224.13,4.446]
[1733172068863,13.94982178,224.24,224.12,70.0]
[1733172068864,13.94982178,224.24,224.16,4.446]
[1733172069377,0.64568682,224.23,224.16,4.446]
[1733172069579,13.94982178,224.24,224.16,4.446]
[1733172075092,11.1492,224.24,224.16,4.446]
[1733172084479,15.98848682,224.26,224.16,4.446]
[1733172085677,2.10507224,224.28,224.2,70.0]
[1733172085879,11.1462,224.29,224.21,4.446]
[1733172086094,11.1462,224.29,224.2,70.0]
[1733172086978,11.1462,224.29,224.21,4.446]
[1733172089300,11.1472,224.27,224.16,74.446]
[1733172089476,20.0,224.24,224.16,74.446]
[1733172091899,31.1487,224.24,224.16,74.446]
[1733172102216,20.0,224.2,224.1,4.446]
[1733172103321,31.1509,224.2,224.12,70.0]
[1733172103500,31.1509,224.2,224.13,4.446]
[1733172105817,31.1509,224.2,224.13,12.85329878]
[1733172106026,31.1509,224.2,224.13,4.446]
[1733172109205,31.1509,224.2,224.12,4.446]
[1733172110335,31.1509,224.2,224.12,74.446]
[1733172110922,31.1509,224.2,224.12,82.85329878]
[1733172114725,31.1509,224.2,224.14,8.40729878]
[1733172114904,31.1509,224.2,224.15,4.446]
[1733172115999,31.1509,224.2,224.14,4.446]